{"text_format":"1","workbook":"xlsx","n_sheets":3,"sheets":["Identif","Univerzita tretieho veku","V. - CVTI"],"not_rendered":{"charts":0,"images":0,"macros":0,"external_links":0,"defined_names":7,"comments":0,"pivot_tables":0},"unopened":[],"bounds":{"document_bytes":16777216,"sheet_cells":100000,"rows_first":2000,"rows_last":500,"rows_between":2000,"halvings":0,"cell_chars":16384,"cell_head_chars":4096},"cells_cut":0,"cells_raw":0,"read":"whole","date_system":"1900"}

{"sheet":"Identif","index":0,"n_rows":31,"n_cols":53,"rows_kept":31,"cut":false,"hidden":false,"merged":[[0,32,0,50],[1,32,2,35],[1,36,1,37],[1,38,1,46],[1,47,2,50],[2,36,2,37],[2,38,2,46],[7,26,7,42],[3,32,3,35],[3,36,3,37],[3,38,3,46],[5,32,5,51],[3,47,3,50],[15,1,15,8],[15,9,15,44],[15,45,15,47],[15,48,15,52],[11,1,11,8],[11,9,11,52],[13,1,13,8],[13,9,13,52],[17,1,17,8],[17,9,17,44],[17,45,17,47],[17,48,17,52],[23,32,23,46],[23,48,23,52],[19,10,19,28],[19,32,19,52],[20,1,20,6],[20,10,20,28],[20,32,20,52],[24,32,24,52],[25,32,25,52],[21,10,21,28],[21,32,21,52],[22,32,22,46],[22,48,22,52],[29,0,29,52],[30,0,30,52],[31,1,31,52],[32,1,32,52],[26,0,26,7],[26,8,26,13],[26,32,26,52],[28,0,28,52],[37,1,37,52],[38,1,38,52],[39,1,39,52],[33,1,33,52],[34,1,34,52],[35,1,35,52],[36,1,36,52]]}
[null,null,null,null,null,null,null,null,null,null,null,null,null,null,null,null,null,null,null,null,null,null,null,null,null,null,null,null,null,null,null,null,"Škol (MŠVVM SR)  11 - 01",null,null,null,null,null,null,null,null,null,null,null,null,null,null,null,null,null,null,null,"T"]
[null,null,null,null,null,null,null,null,null,null,null,null,null,null,null,null,null,null,null,null,null,null,null,null,null,null,null,null,null,null,null,null,"Rok",null,null,null,"Mes",null,"Identifikačné",null,null,null,null,null,null,null,null,"Fakulta"]
[null,null,null,null,null,null,null,null,null,null,null,null,null,null,null,null,null,null,null,null,null,null,null,null,null,null,null,null,null,null,null,null,null,null,null,null,"iac",null,"číslo organizácie"]
[null,null,null,null,null,null,null,null,null,null,null,null,null,null,null,null,null,null,null,null,null,null,null,null,null,null,null,null,null,null,null,null,"2025",null,null,null,"10"]
[]
[null,null,null,null,null,null,null,null,null,null,null,null,null,null,null,null,null,null,null,null,null,null,null,null,null,null,null,null,null,null,null,null,"Zber údajov podľa stavu: k 31. 10. 2025"]
[]
[null,null,null,null,null,null,null,null,null,null,null,null,null,null,null,null,null,null,null,null,null,null,null,null,null,null,"Univerzita tretieho veku"]
[]
[]
[]
[null,"Vysoká škola"]
[]
[null,"Fakulta"]
[]
[null,"Miesto",null,null,null,null,null,null,null,null,null,null,null,null,null,null,null,null,null,null,null,null,null,null,null,null,null,null,null,null,null,null,null,null,null,null,null,null,null,null,null,null,null,null,null,"PSČ"]
[]
[null,"Ulica",null,null,null,null,null,null,null,null,null,null,null,null,null,null,null,null,null,null,null,null,null,null,null,null,null,null,null,null,null,null,null,null,null,null,null,null,null,null,null,null,null,null,null,"č.p."]
[]
[null,null,null,null,null,null,null,null,null,null,"Podpis vedúceho",null,null,null,null,null,null,null,null,null,null,null,null,null,null,null,null,null,null,null,null,null,"Výkaz zostavil"]
[null,"Pečiatka",null,null,null,null,null,null,null,null,"spravodajskej jednotky"]
[]
[null,null,null,null,null,null,null,null,null,null,null,null,null,null,null,null,null,null,null,null,null,null,null,null,null,null,null,null,null,null,null,null,"Telefón",null,null,null,null,null,null,null,null,null,null,null,null,null,null,null,"Klapka"]
[]
[null,null,null,null,null,null,null,null,null,null,null,null,null,null,null,null,null,null,null,null,null,null,null,null,null,null,null,null,null,null,null,null,"E-mail"]
[]
["Odoslané dňa"]
[]
["Polia oranžovej farby musia byť povinne vyplnené (identifikačná časť) alebo označujú nepríspustnú chybu"]
["(údajová časť). Po vyplnení nesmie na formulári byť oranžové pole. Formulár s oranžovým poľom je chybný."]
["Komentár k výkazu (vyplníte povinne, ak na formulári ostalo žlté pole - možná chyba)"]

{"sheet":"Univerzita tretieho veku","index":1,"n_rows":66,"n_cols":26,"rows_kept":66,"cut":false,"hidden":false,"merged":[[1,20,1,25],[4,0,4,3],[63,0,63,3],[51,0,51,3],[53,0,53,3],[54,0,54,3],[47,0,47,3],[48,0,48,3],[49,0,49,3],[50,0,50,3],[59,0,59,3],[60,0,60,3],[61,0,61,3],[52,0,52,3],[43,0,43,3],[44,0,44,3],[64,0,64,3],[62,0,62,3],[55,0,55,3],[56,0,56,3],[57,0,57,3],[58,0,58,3],[45,0,45,3],[46,0,46,3],[65,0,65,3],[2,16,2,17],[2,10,2,11],[1,4,2,5],[2,14,2,15],[2,12,2,13],[37,0,37,3],[38,0,38,3],[39,0,39,3],[40,0,40,3],[41,0,41,3],[42,0,42,3],[31,0,31,3],[32,0,32,3],[33,0,33,3],[34,0,34,3],[35,0,35,3],[36,0,36,3],[25,0,25,3],[26,0,26,3],[27,0,27,3],[28,0,28,3],[29,0,29,3],[30,0,30,3],[24,0,24,3],[13,0,13,3],[14,0,14,3],[15,0,15,3],[16,0,16,3],[17,0,17,3],[18,0,18,3],[19,0,19,3],[20,0,20,3],[21,0,21,3],[22,0,22,3],[23,0,23,3],[12,0,12,3],[5,0,5,3],[1,0,3,3],[0,20,0,25],[6,0,6,3],[0,0,0,4],[0,5,0,16],[2,8,2,9],[2,6,2,7],[1,6,1,17],[1,18,2,19],[7,0,7,3],[8,0,8,3],[9,0,9,3],[10,0,10,3],[11,0,11,3]]}
["I. Zapísaní študujúci",null,null,null,null,"UNIVERZITA TRETIEHO VEKU",null,null,null,null,null,null,null,null,null,null,null,"Fakulta",null,{"$f":"Identif!AV4","v":0}]
["Názov programu štúdia",null,null,null,"1. - 6. ročník",null,"v akademickom roku",null,null,null,null,null,null,null,null,null,null,null,"Novoprijatí",null,"Výpis chýb v jednotlivých riadkoch"]
[null,null,null,null,null,null,"1. ročník",null,"2. ročník",null,"3. ročník",null,"4. ročník",null,"5. ročník",null,"6. ročník",null,null,null,"Nevyplnený program alebo nulové - nenahraté údaje"]
[null,null,null,null,"spolu","ženy","spolu","ženy","spolu","ženy","spolu","ženy","spolu","ženy","spolu","ženy","spolu","ženy","spolu","ženy","chyba ŽENY = viac žien v ročníku ako je študujúcich spolu"]
["celkom",null,null,null,{"$f":"SUM(G5+I5+K5+M5+O5+Q5)","v":0},{"$f":"SUM(H5+J5+L5+N5+P5+R5)","v":0},{"$f":"SUM(G6:G66)","v":0},{"$f":"SUM(H6:H66)","v":0},0,0,0,0,0,0,0,0,0,0,0,{"$f":"SUM(T6:T66)","v":0},"chyba NOVO = viac novoprijatých ako počet študujúcich 1. ročníka"]
[null,null,null,null,{"$f":"SUM(G6+I6+K6+M6+O6+Q6)","v":0},{"$f":"SUM(H6+J6+L6+N6+P6+R6)","v":0},null,null,null,null,null,null,null,null,null,null,null,null,null,null,{"$f":"IF(A6=0,IF(E6>0,\"nevyplnený odbor\",\" \"),\" \")","v":" "},{"$f":"IF(A6>0,IF(E6=0,\"nulové údaje\",\" \"),\" \")","v":" "},{"$f":"IF(G6<H6,\"ŽENY 1.\",IF(I6<J6,\"ŽENY 2.\",IF(K6<L6,\"ŽENY 3.\",IF(M6<N6,\"ŽENY 4.\",IF(O6<P6,\"ŽENY 5.\",IF(Q6<R6,\"ŽENY 6.\",IF(S6<T6,\"ŽENY novo\",\" \")))))))","v":" "},{"$f":"IF(G6<S6,\"NOVO\",IF(H6<T6,\"NOVO ženy\",\" \"))","v":" "},{"$f":"IF(G6>5,IF(S6=0,\"Nevyplnení novo\",\" \"),\" \")","v":" "},{"$f":"IF(S6=G6,IF(T6<>H6,\"Novo ženy<>ženy 1r\",\" \"),\" \")","v":" "}]
[null,null,null,null,{"$f":"SUM(G7+I7+K7+M7+O7+Q7)","v":0},{"$f":"SUM(H7+J7+L7+N7+P7+R7)","v":0},null,null,null,null,null,null,null,null,null,null,null,null,null,null,{"$f":"IF(A7=0,IF(E7>0,\"nevyplnený odbor\",\" \"),\" \")","v":" "},{"$f":"IF(A7>0,IF(E7=0,\"nulové údaje\",\" \"),\" \")","v":" "},{"$f":"IF(G7<H7,\"ŽENY 1.\",IF(I7<J7,\"ŽENY 2.\",IF(K7<L7,\"ŽENY 3.\",IF(M7<N7,\"ŽENY 4.\",IF(O7<P7,\"ŽENY 5.\",IF(Q7<R7,\"ŽENY 6.\",IF(S7<T7,\"ŽENY novo\",\" \")))))))","v":" "},{"$f":"IF(G7<S7,\"NOVO\",IF(H7<T7,\"NOVO ženy\",\" \"))","v":" "},{"$f":"IF(G7>5,IF(S7=0,\"Nevyplnení novo\",\" \"),\" \")","v":" "},{"$f":"IF(S7=G7,IF(T7<>H7,\"Novo ženy<>ženy 1r\",\" \"),\" \")","v":" "}]
[null,null,null,null,0,0,null,null,null,null,null,null,null,null,null,null,null,null,null,null," "," "," "," "," "," "]
[null,null,null,null,0,0,null,null,null,null,null,null,null,null,null,null,null,null,null,null," "," "," "," "," "," "]
[null,null,null,null,{"$f":"SUM(G10+I10+K10+M10+O10+Q10)","v":0},0,null,null,null,null,null,null,null,null,null,null,null,null,null,null," "," "," "," "," "," "]
[null,null,null,null,0,0,null,null,null,null,null,null,null,null,null,null,null,null,null,null," "," "," "," "," "," "]
[null,null,null,null,0,0,null,null,null,null,null,null,null,null,null,null,null,null,null,null," "," "," "," "," "," "]
[null,null,null,null,0,0,null,null,null,null,null,null,null,null,null,null,null,null,null,null," "," "," "," "," "," "]
[null,null,null,null,0,0,null,null,null,null,null,null,null,null,null,null,null,null,null,null," "," "," "," "," "," "]
[null,null,null,null,0,0,null,null,null,null,null,null,null,null,null,null,null,null,null,null," "," "," "," "," "," "]
[null,null,null,null,0,0,null,null,null,null,null,null,null,null,null,null,null,null,null,null," "," "," "," "," "," "]
[null,null,null,null,0,0,null,null,null,null,null,null,null,null,null,null,null,null,null,null," "," "," "," "," "," "]
[null,null,null,null,0,0,null,null,null,null,null,null,null,null,null,null,null,null,null,null," "," "," "," "," "," "]
[null,null,null,null,0,0,null,null,null,null,null,null,null,null,null,null,null,null,null,null," "," "," "," "," "," "]
[null,null,null,null,0,0,null,null,null,null,null,null,null,null,null,null,null,null,null,null," "," "," "," "," "," "]
[null,null,null,null,0,0,null,null,null,null,null,null,null,null,null,null,null,null,null,null," "," "," "," "," "," "]
[null,null,null,null,0,0,null,null,null,null,null,null,null,null,null,null,null,null,null,null," "," "," "," "," "," "]
[null,null,null,null,0,0,null,null,null,null,null,null,null,null,null,null,null,null,null,null," "," "," "," "," "," "]
[null,null,null,null,0,0,null,null,null,null,null,null,null,null,null,null,null,null,null,null," "," "," "," "," "," "]
[null,null,null,null,0,0,null,null,null,null,null,null,null,null,null,null,null,null,null,null," "," "," "," "," "," "]
[null,null,null,null,0,0,null,null,null,null,null,null,null,null,null,null,null,null,null,null," "," "," "," "," "," "]
[null,null,null,null,0,0,null,null,null,null,null,null,null,null,null,null,null,null,null,null," "," "," "," "," "," "]
[null,null,null,null,0,0,null,null,null,null,null,null,null,null,null,null,null,null,null,null," "," "," "," "," "," "]
[null,null,null,null,0,0,null,null,null,null,null,null,null,null,null,null,null,null,null,null," "," "," "," "," "," "]
[null,null,null,null,0,0,null,null,null,null,null,null,null,null,null,null,null,null,null,null," "," "," "," "," "," "]
[null,null,null,null,0,0,null,null,null,null,null,null,null,null,null,null,null,null,null,null," "," "," "," "," "," "]
[null,null,null,null,0,0,null,null,null,null,null,null,null,null,null,null,null,null,null,null," "," "," "," "," "," "]
[null,null,null,null,0,0,null,null,null,null,null,null,null,null,null,null,null,null,null,null," "," "," "," "," "," "]
[null,null,null,null,0,0,null,null,null,null,null,null,null,null,null,null,null,null,null,null," "," "," "," "," "," "]
[null,null,null,null,0,0,null,null,null,null,null,null,null,null,null,null,null,null,null,null," "," "," "," "," "," "]
[null,null,null,null,0,0,null,null,null,null,null,null,null,null,null,null,null,null,null,null," "," "," "," "," "," "]
[null,null,null,null,0,0,null,null,null,null,null,null,null,null,null,null,null,null,null,null," "," "," "," "," "," "]
[null,null,null,null,0,0,null,null,null,null,null,null,null,null,null,null,null,null,null,null," "," "," "," "," "," "]
[null,null,null,null,0,0,null,null,null,null,null,null,null,null,null,null,null,null,null,null," "," "," "," "," "," "]
[null,null,null,null,0,0,null,null,null,null,null,null,null,null,null,null,null,null,null,null," "," "," "," "," "," "]
[null,null,null,null,0,0,null,null,null,null,null,null,null,null,null,null,null,null,null,null," "," "," "," "," "," "]
[null,null,null,null,0,0,null,null,null,null,null,null,null,null,null,null,null,null,null,null," "," "," "," "," "," "]
[null,null,null,null,0,0,null,null,null,null,null,null,null,null,null,null,null,null,null,null," "," "," "," "," "," "]
[null,null,null,null,0,0,null,null,null,null,null,null,null,null,null,null,null,null,null,null," "," "," "," "," "," "]
[null,null,null,null,0,0,null,null,null,null,null,null,null,null,null,null,null,null,null,null," "," "," "," "," "," "]
[null,null,null,null,0,0,null,null,null,null,null,null,null,null,null,null,null,null,null,null," "," "," "," "," "," "]
[null,null,null,null,0,0,null,null,null,null,null,null,null,null,null,null,null,null,null,null," "," "," "," "," "," "]
[null,null,null,null,0,0,null,null,null,null,null,null,null,null,null,null,null,null,null,null," "," "," "," "," "," "]
[null,null,null,null,0,0,null,null,null,null,null,null,null,null,null,null,null,null,null,null," "," "," "," "," "," "]
[null,null,null,null,0,0,null,null,null,null,null,null,null,null,null,null,null,null,null,null," "," "," "," "," "," "]
[null,null,null,null,0,0,null,null,null,null,null,null,null,null,null,null,null,null,null,null," "," "," "," "," "," "]
[null,null,null,null,0,0,null,null,null,null,null,null,null,null,null,null,null,null,null,null," "," "," "," "," "," "]
[null,null,null,null,0,0,null,null,null,null,null,null,null,null,null,null,null,null,null,null," "," "," "," "," "," "]
[null,null,null,null,0,0,null,null,null,null,null,null,null,null,null,null,null,null,null,null," "," "," "," "," "," "]
[null,null,null,null,0,0,null,null,null,null,null,null,null,null,null,null,null,null,null,null," "," "," "," "," "," "]
[null,null,null,null,0,0,null,null,null,null,null,null,null,null,null,null,null,null,null,null," "," "," "," "," "," "]
[null,null,null,null,0,0,null,null,null,null,null,null,null,null,null,null,null,null,null,null," "," "," "," "," "," "]
[null,null,null,null,0,0,null,null,null,null,null,null,null,null,null,null,null,null,null,null," "," "," "," "," "," "]
[null,null,null,null,0,0,null,null,null,null,null,null,null,null,null,null,null,null,null,null," "," "," "," "," "," "]
[null,null,null,null,0,0,null,null,null,null,null,null,null,null,null,null,null,null,null,null," "," "," "," "," "," "]
[null,null,null,null,0,0,null,null,null,null,null,null,null,null,null,null,null,null,null,null," "," "," "," "," "," "]
[null,null,null,null,0,0,null,null,null,null,null,null,null,null,null,null,null,null,null,null," "," "," "," "," "," "]
[null,null,null,null,0,0,null,null,null,null,null,null,null,null,null,null,null,null,null,null," "," "," "," "," "," "]
[null,null,null,null,0,0,null,null,null,null,null,null,null,null,null,null,null,null,null,null," "," "," "," "," "," "]
[null,null,null,null,0,0,null,null,null,null,null,null,null,null,null,null,null,null,null,null," "," "," "," "," "," "]
[null,null,null,null,0,0,null,null,null,null,null,null,null,null,null,null,null,null,null,null," "," "," "," "," "," "]

{"sheet":"V. - CVTI","index":2,"n_rows":25,"n_cols":17,"rows_kept":25,"cut":false,"hidden":false,"merged":[[22,5,23,5],[1,6,3,6],[4,0,4,4],[1,8,1,14],[2,8,2,9],[2,10,3,10],[2,11,3,11],[2,12,3,12],[2,13,3,13],[2,14,3,14],[1,0,3,4],[16,5,17,5],[18,2,19,4],[18,5,19,5],[20,2,21,4],[20,5,21,5],[1,5,3,5],[6,0,6,2],[6,3,6,4],[5,0,5,2],[5,3,5,4],[14,5,15,5],[14,6,15,6],[14,10,15,10],[14,11,15,11],[14,12,15,12],[14,7,15,7],[14,8,15,8],[14,9,15,9],[9,1,9,3],[8,1,8,4],[7,0,23,0],[7,1,7,4],[11,1,11,3],[16,2,17,4],[22,2,23,4],[14,2,15,4],[10,1,10,3],[13,2,13,4],[12,1,23,1],[12,2,12,4],[7,15,7,17],[8,15,8,17],[9,15,9,17],[10,15,10,17],[11,15,11,17],[14,14,15,14],[16,13,17,13],[16,14,17,14],[16,9,17,9],[16,10,17,10],[16,11,17,11],[16,12,17,12],[14,13,15,13],[18,8,19,8],[18,9,19,9],[18,6,19,6],[18,7,19,7],[22,15,23,17],[22,13,23,13],[22,14,23,14],[20,15,21,17],[18,10,19,10],[22,12,23,12],[3,15,3,17],[4,15,4,17],[6,16,6,17],[5,16,5,17],[22,6,23,6],[22,7,23,7],[22,8,23,8],[22,9,23,9],[22,10,23,10],[18,12,19,12],[18,13,19,13],[18,14,19,14],[18,11,19,11],[20,12,21,12],[20,13,21,13],[20,14,21,14],[24,0,24,4],[12,15,12,17],[13,15,13,17],[14,15,15,17],[16,15,17,17],[18,15,19,17],[22,11,23,11],[20,11,21,11],[20,6,21,6],[20,7,21,7],[20,8,21,8],[20,9,21,9],[20,10,21,10],[16,6,17,6],[16,7,17,7],[16,8,17,8]]}
["V. Ostatné formy štúdia 3/ - Univerzita tretieho veku",null,null,null,null,null,null,"prepočet z odd. I.  pre potrebu CVTI SR - fakulta nevypĺňa",null,null,null,null,null,null,null,"Fakulta",{"$f":"Identif!AV4","v":0}]
[null,null,null,null,null,"I.r.","Spolu",null,"zo stĺpca 2 v akademickom roku"]
[null,null,null,null,null,null,null,"z toho","1.",null,"2.","3.","4.","5.","6."]
[null,null,null,null,null,null,null,"ženy","spolu","novopr.",null,null,null,null,null,"Výpis chýb odd. V."]
["a",null,null,null,null,1,2,3,4,5,6,7,8,9,10,"v jednotlivých riadkoch"]
["Mimoriadne",null,null,"študujúci spolu",null,"0501",{"$f":"SUM(I6+K6+L6+M6+N6+O6)","v":0},"x",{"$f":"'Univerzita tretieho veku'!G5","v":0},{"$f":"'Univerzita tretieho veku'!S5","v":0},{"$f":"'Univerzita tretieho veku'!I5","v":0},{"$f":"'Univerzita tretieho veku'!K5","v":0},{"$f":"'Univerzita tretieho veku'!M5","v":0},{"$f":"'Univerzita tretieho veku'!O5","v":0},{"$f":"'Univerzita tretieho veku'!Q5","v":0},{"$f":"IF(I6<J6,\"s4 < s5\",\" \")","v":" "},{"$f":"IF(I7>I6,\"r0501<r0502 S4\",IF(J7>J6,\"r0501<r0502 S5\",IF(K7>K6,\"r0501<r0502 S6\",IF(L7>L6,\"r0501<r0502 S7\",IF(M7>M6,\"r0501<r0502 S8\",IF(N7>N6,\"r0501<r0502 S9\",IF(O7>O6,\"r0501<r0502 S10\",\" \")))))))","v":" "}]
["štúdium",null,null,"z toho ženy",null,"0502",0,"x",{"$f":"'Univerzita tretieho veku'!H5","v":0},{"$f":"'Univerzita tretieho veku'!T5","v":0},{"$f":"'Univerzita tretieho veku'!J5","v":0},{"$f":"'Univerzita tretieho veku'!L5","v":0},{"$f":"'Univerzita tretieho veku'!N5","v":0},{"$f":"'Univerzita tretieho veku'!P5","v":0},{"$f":"'Univerzita tretieho veku'!R5","v":0},{"$f":"IF(I7<J7,\"s4 < s5\",\" \")","v":" "},{"$f":"IF(I6=I7,IF(J6<>J7,\"Novo ženy<>ženy 1r\",\" \"),IF(I7-J7>I6-J6,\"Nesprávne ženy v r0502\",\" \"))","v":" "}]
["Zvláštne druhy štúdia","študujúci spolu (0505 až 0514)",null,null,null,"0503",0,"x",{"$f":"SUM(I10:I23)","v":0},0,0,0,0,0,0,{"$f":"IF(I8<I9,\"r0503 < r0504 stĺ. 4\",IF(J8<J9,\"r0503 < r0504 stĺ. 5\",IF(K8<K9,\"r0503 < r0504 stĺ. 6\",IF(L8<L9,\"r0503 < r0504 stĺ. 7\",IF(M8<M9,\"r0503 < r0504 stĺ. 8\",IF(N8<N9,\"r0503 < r0504 stĺ. 9\",IF(O8<O9,\"r0503 < r0504 stĺ. 10\",\" \")))))))","v":" "}]
[null,"z toho ženy",null,null,null,"0504",0,"x",null,null,null,null,null,null,null,{"$f":"IF(G9<>SUM(H10:H23),\"r0504 s4+6 až 10<>s3 r0505 až 0514\",IF(I9<J9,\"r0504 stĺ. 4 < stĺ. 5\",\" \"))","v":" "}]
[null,"doplňujúce",null,null,"absolventov VŠ","0505",0,null,null,null,null,null,null,null,null,{"$f":"IF(G10<H10,\"r0505 stĺ. 2 < stĺ. 3\",IF(I10<J10,\"r0505 stĺ. 4 < stĺ. 5\",\" \"))","v":" "}]
[null,"pedagogické",null,null,"absolventov SŠ","0506",0,null,null,null,null,null,null,null,null,{"$f":"IF(G11<H11,\"r0506 stĺ. 2 < stĺ. 3\",IF(I11<J11,\"r0506 stĺ. 4 < stĺ. 5\",\" \"))","v":" "}]
[null,"štúdium pre",null,null,"študentov VŠ","0507",0,null,null,null,null,null,null,null,null,{"$f":"IF(G12<H12,\"r0507 stĺ. 2 < stĺ. 3\",IF(I12<J12,\"r0507 stĺ. 4 < stĺ. 5\",\" \"))","v":" "}]
[null,"rozširujúce štúdium","na vyučovanie ďalšieho VVP",null,null,"0508",0,null,null,null,null,null,null,null,null,{"$f":"IF(G13<H13,\"r0508 stĺ. 2 < stĺ. 3\",IF(I13<J13,\"r0508 stĺ. 4 < stĺ. 5\",\" \"))","v":" "}]
[null,null,"na vyučovanie VVP",null,null,"0509",0,null,null,null,null,null,null,null,null,{"$f":"IF(G14<H14,\"r0509 stĺ. 2 < stĺ. 3\",IF(I14<J14,\"r0509 stĺ. 4 < stĺ. 5\",\" \"))","v":" "}]
[null,null,"na vyučovanie a odb. výchovu v špeciálnych školách 2 ročné",null,null,"0510",0,null,null,null,null,null,null,null,null,{"$f":"IF(G15<H15,\"r0510 stĺ. 2 < stĺ. 3\",IF(I15<J15,\"r0510 stĺ. 4 < stĺ. 5\",\" \"))","v":" "}]
[]
[null,null,"na výchovu v MŠ pre deti so špec. výchovno-vzdelávacími potrebami",null,null,"0511",{"$f":"SUM(I17+K17+L17+M17+N17+O17)","v":0},null,null,null,null,null,null,null,null,{"$f":"IF(G17<H17,\"r0511 stĺ. 2 < stĺ. 3\",IF(I17<J17,\"r0511 stĺ. 4 < stĺ. 5\",\" \"))","v":" "}]
[]
[null,null,"na vyučovanie v špeciálnych školách 3 ročné",null,null,"0512",{"$f":"SUM(I19+K19+L19+M19+N19+O19)","v":0},null,null,null,null,null,null,null,null,{"$f":"IF(G19<H19,\"r0512 stĺ. 2 < stĺ. 3\",IF(I19<J19,\"r0512 stĺ. 4 < stĺ. 5\",\" \"))","v":" "}]
[]
[null,null,"na vyučovanie odborných predmetov na stredných školách",null,null,"0513",{"$f":"SUM(I21+K21+L21+M21+N21+O21)","v":0},null,null,null,null,null,null,null,null,{"$f":"IF(G21<H21,\"r0513 stĺ. 2 < stĺ. 3\",IF(I21<J21,\"r0513 stĺ. 4 < stĺ. 5\",\" \"))","v":" "}]
[]
[null,null,"pre výchovnú činnosť v špeciálnych školách a zariadeniach",null,null,"0514",{"$f":"SUM(I23+K23+L23+M23+N23+O23)","v":0},null,null,null,null,null,null,null,null,{"$f":"IF(G23<H23,\"r0514 stĺ. 2 < stĺ. 3\",IF(I23<J23,\"r0514 stĺ. 4 < stĺ. 5\",\" \"))","v":" "}]
[]
["Kontrolný súčet (0501 až 0514)",null,null,null,null,"0516",{"$f":"SUM(G6:G23)","v":0},0,0,0,0,0,0,0,0]